[Event "Late-Titled-Tuesday-Blitz-March-19-2024"]
[Site "Chess.com"]
[Date "2024.03.19"]
[Round "4"]
[White "David_ATM"]
[Black "AGW2016"]
[Result "0-1"]
[WhiteElo "2327"]
[BlackElo "2546"]
[TimeControl "180+1"]
[EndTime "14:38:11 PDT"]
[Termination "AGW2016 won on time"]

1. e4 {[%clk 0:03:00.9]} 1... c5 {[%clk 0:02:57.2]} 2. c3 {[%clk 0:03:01.1]}
2... Nf6 {[%clk 0:02:57.1]} 3. e5 {[%clk 0:03:01.4]} 3... Nd5 {[%clk 0:02:57.8]}
4. d4 {[%clk 0:03:02.2]} 4... cxd4 {[%clk 0:02:58.6]} 5. Nf3 {[%clk 0:03:02.9]}
5... d6 {[%clk 0:02:57.8]} 6. cxd4 {[%clk 0:03:03.8]} 6... Nc6 {[%clk
0:02:57.5]} 7. Bc4 {[%clk 0:03:04.5]} 7... Nb6 {[%clk 0:02:57.6]} 8. Bb5 {[%clk
0:03:05.1]} 8... dxe5 {[%clk 0:02:56.9]} 9. Nxe5 {[%clk 0:03:06]} 9... Bd7
{[%clk 0:02:57.7]} 10. Nxd7 {[%clk 0:03:06.6]} 10... Qxd7 {[%clk 0:02:58.6]} 11.
Nc3 {[%clk 0:03:07.1]} 11... e6 {[%clk 0:02:58.6]} 12. O-O {[%clk 0:03:07.6]}
12... Be7 {[%clk 0:02:59.3]} 13. Qg4 {[%clk 0:03:08]} 13... Bf6 {[%clk
0:02:58.3]} 14. Rd1 {[%clk 0:03:03.7]} 14... O-O {[%clk 0:02:57.4]} 15. Bxc6
{[%clk 0:03:03.5]} 15... Qxc6 {[%clk 0:02:57.3]} 16. Bh6 {[%clk 0:02:59.2]}
16... Kh8 {[%clk 0:02:37.1]} 17. Ne4 {[%clk 0:02:57.5]} 17... Rg8 {[%clk
0:02:37.2]} 18. Rac1 {[%clk 0:02:24.8]} 18... Qd5 {[%clk 0:02:34.2]} 19. Be3
{[%clk 0:01:37.1]} 19... Be7 {[%clk 0:02:14]} 20. Qf3 {[%clk 0:01:26.8]} 20...
f5 {[%clk 0:02:05.1]} 21. Nd2 {[%clk 0:01:26.6]} 21... Qxa2 {[%clk 0:02:02.8]}
22. Rc7 {[%clk 0:01:22.7]} 22... Nd5 {[%clk 0:01:59.4]} 23. Rxb7 {[%clk
0:01:22.8]} 23... Rab8 {[%clk 0:01:58.2]} 24. Rxb8 {[%clk 0:01:11.6]} 24... Rxb8
{[%clk 0:01:58.1]} 25. b3 {[%clk 0:01:00.3]} 25... Bb4 {[%clk 0:01:50.3]} 26.
Bf4 {[%clk 0:00:45.1]} 26... Rc8 {[%clk 0:01:45.5]} 27. Nc4 {[%clk 0:00:28.1]}
27... Nxf4 {[%clk 0:01:41.3]} 28. Qxf4 {[%clk 0:00:28.2]} 28... Qxb3 {[%clk
0:01:42]} 29. Rc1 {[%clk 0:00:26]} 29... h6 {[%clk 0:01:26.8]} 30. Ne5 {[%clk
0:00:22.9]} 30... Rxc1+ {[%clk 0:01:23.2]} 31. Qxc1 {[%clk 0:00:23.8]} 31... Qc3
{[%clk 0:01:23.9]} 32. Qd1 {[%clk 0:00:02.4]} 32... a5 {[%clk 0:01:12.6]} 33.
Kf1 {[%clk 0:00:02.9]} 33... a4 {[%clk 0:01:11.2]} 34. g3 {[%clk 0:00:03.4]}
34... a3 {[%clk 0:00:58.3]} 35. Qb1 {[%clk 0:00:01]} 35... Qxd4 {[%clk
0:00:46.3]} 0-1

[Event "Late-Titled-Tuesday-Blitz-March-19-2024"]
[Site "Chess.com"]
[Date "2024.03.19"]
[Round "4"]
[White "Heinza9"]
[Black "dennisodessa"]
[Result "1-0"]
[WhiteElo "2333"]
[BlackElo "2518"]
[TimeControl "180+1"]
[EndTime "14:38:11 PDT"]
[Termination "Heinza9 won by resignation"]

1. c4 {[%clk 0:02:56.6]} 1... e5 {[%clk 0:02:59.6]} 2. Nc3 {[%clk 0:02:56.1]}
2... Nc6 {[%clk 0:03:00.3]} 3. g3 {[%clk 0:02:53.9]} 3... Bc5 {[%clk 0:03:00.5]}
4. Bg2 {[%clk 0:02:50.8]} 4... a6 {[%clk 0:03:00.9]} 5. e3 {[%clk 0:02:50.6]}
5... d6 {[%clk 0:03:01.4]} 6. Nge2 {[%clk 0:02:51.1]} 6... Ba7 {[%clk
0:03:02.3]} 7. d4 {[%clk 0:02:50.5]} 7... Nf6 {[%clk 0:03:01.9]} 8. h3 {[%clk
0:02:50.2]} 8... O-O {[%clk 0:03:02.2]} 9. O-O {[%clk 0:02:50]} 9... Re8 {[%clk
0:02:58.8]} 10. g4 {[%clk 0:02:47.8]} 10... Rb8 {[%clk 0:02:51.6]} 11. b3 {[%clk
0:02:46.2]} 11... Bd7 {[%clk 0:02:47.3]} 12. a4 {[%clk 0:02:37.7]} 12... Nb4
{[%clk 0:02:45.9]} 13. Ba3 {[%clk 0:02:23]} 13... a5 {[%clk 0:02:46]} 14. Bxb4
{[%clk 0:02:13.3]} 14... axb4 {[%clk 0:02:46.9]} 15. Nb5 {[%clk 0:02:10.7]}
15... Bxb5 {[%clk 0:02:40.6]} 16. axb5 {[%clk 0:02:11.6]} 16... Bb6 {[%clk
0:02:40.8]} 17. Ng3 {[%clk 0:02:07.9]} 17... Nd7 {[%clk 0:02:23.7]} 18. Qd2
{[%clk 0:02:05.6]} 18... exd4 {[%clk 0:02:23.7]} 19. exd4 {[%clk 0:02:05.2]}
19... Qf6 {[%clk 0:02:24.6]} 20. Nf5 {[%clk 0:01:43.3]} 20... g6 {[%clk
0:02:23]} 21. Nh6+ {[%clk 0:01:42.3]} 21... Kg7 {[%clk 0:02:23.5]} 22. Rad1
{[%clk 0:01:34.9]} 22... Bxd4 {[%clk 0:01:46.7]} 23. g5 {[%clk 0:01:34.4]} 23...
Qe5 {[%clk 0:01:46.4]} 24. Qxd4 {[%clk 0:01:31.7]} 24... Qxd4 {[%clk 0:01:43.7]}
25. Rxd4 {[%clk 0:01:32.6]} 25... f5 {[%clk 0:01:44.4]} 26. Rdd1 {[%clk
0:01:20.7]} 26... Nc5 {[%clk 0:01:42.9]} 27. Rfe1 {[%clk 0:01:05.2]} 27... Nxb3
{[%clk 0:01:25.8]} 28. Rxe8 {[%clk 0:00:58.6]} 28... Rxe8 {[%clk 0:01:26.7]} 29.
Rb1 {[%clk 0:00:55.9]} 29... Nd2 {[%clk 0:01:12.4]} 30. Rxb4 {[%clk 0:00:55.3]}
30... Re1+ {[%clk 0:01:12.8]} 31. Kh2 {[%clk 0:00:55.3]} 31... Rc1 {[%clk
0:01:13.7]} 32. Bxb7 {[%clk 0:00:52.1]} 32... Nxc4 {[%clk 0:01:13.2]} 33. Bd5
{[%clk 0:00:41.9]} 33... Nb6 {[%clk 0:01:11.3]} 34. Bc6 {[%clk 0:00:39.9]} 34...
Rc2 {[%clk 0:01:08.2]} 35. Kg2 {[%clk 0:00:39.6]} 35... Nc4 {[%clk 0:01:05.4]}
36. Ra4 {[%clk 0:00:32.4]} 36... Ne3+ {[%clk 0:00:42.4]} 37. Kf3 {[%clk
0:00:31.6]} 37... Nd1 {[%clk 0:00:42.7]} 38. Ra7 {[%clk 0:00:26.4]} 38... Rxf2+
{[%clk 0:00:42.7]} 39. Kg3 {[%clk 0:00:26.7]} 39... f4+ {[%clk 0:00:43]} 40. Kh4
{[%clk 0:00:24.1]} 1-0

[Event "Late-Titled-Tuesday-Blitz-March-19-2024"]
[Site "Chess.com"]
[Date "2024.03.19"]
[Round "4"]
[White "LiemLe"]
[Black "Likvidator228"]
[Result "1-0"]
[WhiteElo "3030"]
[BlackElo "2571"]
[TimeControl "180+1"]
[EndTime "14:38:14 PDT"]
[Termination "LiemLe won by resignation"]

1. Nf3 {[%clk 0:03:00.9]} 1... d5 {[%clk 0:02:59.9]} 2. g3 {[%clk 0:03:00.7]}
2... Nf6 {[%clk 0:02:59.9]} 3. Bg2 {[%clk 0:03:01.3]} 3... c6 {[%clk 0:02:57.1]}
4. O-O {[%clk 0:03:01.6]} 4... h6 {[%clk 0:02:57.3]} 5. d3 {[%clk 0:02:58.8]}
5... Bf5 {[%clk 0:02:57.8]} 6. Nbd2 {[%clk 0:02:59]} 6... e6 {[%clk 0:02:58.2]}
7. b3 {[%clk 0:02:58.4]} 7... Nbd7 {[%clk 0:02:57]} 8. Bb2 {[%clk 0:02:58.9]}
8... Be7 {[%clk 0:02:56.9]} 9. Re1 {[%clk 0:02:59.5]} 9... Bh7 {[%clk 0:02:54]}
10. e4 {[%clk 0:02:59.7]} 10... O-O {[%clk 0:02:53.8]} 11. Qe2 {[%clk
0:02:56.9]} 11... a5 {[%clk 0:02:52.3]} 12. a3 {[%clk 0:02:49.9]} 12... a4
{[%clk 0:02:43]} 13. b4 {[%clk 0:02:48.4]} 13... c5 {[%clk 0:02:43.5]} 14. exd5
{[%clk 0:02:04.7]} 14... Nxd5 {[%clk 0:02:38.3]} 15. c4 {[%clk 0:01:53.9]} 15...
N5f6 {[%clk 0:02:38.3]} 16. Bc3 {[%clk 0:01:42.1]} 16... Rc8 {[%clk 0:02:15.9]}
17. Red1 {[%clk 0:01:26.4]} 17... b5 {[%clk 0:02:06.5]} 18. Rac1 {[%clk
0:01:07.6]} 18... cxb4 {[%clk 0:02:05.3]} 19. axb4 {[%clk 0:01:08.5]} 19... bxc4
{[%clk 0:02:03.2]} 20. dxc4 {[%clk 0:01:09.4]} 20... Qc7 {[%clk 0:01:42.2]} 21.
Nd4 {[%clk 0:01:09.3]} 21... Qe5 {[%clk 0:01:10.7]} 22. Qf1 {[%clk 0:00:52.1]}
22... Qh5 {[%clk 0:00:59.4]} 23. Nc6 {[%clk 0:00:49.6]} 23... Bd6 {[%clk
0:00:42.4]} 24. c5 {[%clk 0:00:45.2]} 24... Bc7 {[%clk 0:00:37.3]} 25. Ne7+
{[%clk 0:00:44.7]} 25... Kh8 {[%clk 0:00:37]} 26. Nxc8 {[%clk 0:00:44.1]} 26...
Rxc8 {[%clk 0:00:37.5]} 27. Nc4 {[%clk 0:00:40.8]} 27... Be4 {[%clk 0:00:27.6]}
28. Bxe4 {[%clk 0:00:36.4]} 28... Nxe4 {[%clk 0:00:26.4]} 29. Rxd7 {[%clk
0:00:36.7]} 29... Qf3 {[%clk 0:00:24.2]} 30. Nd2 {[%clk 0:00:34.1]} 30... Nxd2
{[%clk 0:00:23.9]} 31. Rxd2 {[%clk 0:00:31]} 31... a3 {[%clk 0:00:24.1]} 32. Qd3
{[%clk 0:00:24.3]} 32... Qh5 {[%clk 0:00:22.2]} 33. Qa6 {[%clk 0:00:21.1]} 33...
Rg8 {[%clk 0:00:18.9]} 34. Qxa3 {[%clk 0:00:21.1]} 1-0

[Event "Late-Titled-Tuesday-Blitz-March-19-2024"]
[Site "Chess.com"]
[Date "2024.03.19"]
[Round "4"]
[White "GoltsevDmitry2000"]
[Black "yaguigor"]
[Result "1-0"]
[WhiteElo "2756"]
[BlackElo "2573"]
[TimeControl "180+1"]
[EndTime "14:38:15 PDT"]
[Termination "GoltsevDmitry2000 won by resignation"]

1. e4 {[%clk 0:03:00.5]} 1... c5 {[%clk 0:02:58.6]} 2. Nf3 {[%clk 0:03:00.6]}
2... Nc6 {[%clk 0:02:57.8]} 3. d4 {[%clk 0:03:01]} 3... cxd4 {[%clk 0:02:57.5]}
4. Nxd4 {[%clk 0:03:01.9]} 4... Nf6 {[%clk 0:02:57.5]} 5. Nc3 {[%clk 0:03:02.3]}
5... e5 {[%clk 0:02:57.9]} 6. Nf5 {[%clk 0:03:02.6]} 6... d5 {[%clk 0:02:57.6]}
7. exd5 {[%clk 0:03:03]} 7... Bxf5 {[%clk 0:02:57.6]} 8. dxc6 {[%clk 0:03:03.9]}
8... bxc6 {[%clk 0:02:57.2]} 9. Bd3 {[%clk 0:03:03.8]} 9... Bxd3 {[%clk
0:02:48.5]} 10. Qxd3 {[%clk 0:03:04.7]} 10... Qxd3 {[%clk 0:02:47.3]} 11. cxd3
{[%clk 0:03:05.6]} 11... Bb4 {[%clk 0:02:46.9]} 12. Ke2 {[%clk 0:03:05.8]} 12...
Nd5 {[%clk 0:02:42.9]} 13. Nxd5 {[%clk 0:03:04.2]} 13... cxd5 {[%clk 0:02:42.3]}
14. Bd2 {[%clk 0:03:05.1]} 14... Bxd2 {[%clk 0:02:41.3]} 15. Kxd2 {[%clk
0:03:06]} 15... Kd7 {[%clk 0:02:41.4]} 16. Rhc1 {[%clk 0:03:05.4]} 16... Rhc8
{[%clk 0:02:40.5]} 17. Rxc8 {[%clk 0:03:01.1]} 17... Rxc8 {[%clk 0:02:39.3]} 18.
Re1 {[%clk 0:03:02]} 18... f6 {[%clk 0:02:38.2]} 19. f3 {[%clk 0:03:01.9]} 19...
Kd6 {[%clk 0:02:32.8]} 20. g3 {[%clk 0:02:55.3]} 20... h5 {[%clk 0:02:30.8]} 21.
Re3 {[%clk 0:02:45.2]} 21... g5 {[%clk 0:02:29.1]} 22. d4 {[%clk 0:02:39]} 22...
Rb8 {[%clk 0:02:13.1]} 23. dxe5+ {[%clk 0:02:29.2]} 23... fxe5 {[%clk
0:02:11.7]} 24. b3 {[%clk 0:02:28.8]} 24... d4 {[%clk 0:02:03.6]} 25. Re1 {[%clk
0:02:25.9]} 25... Rc8 {[%clk 0:02:00.5]} 26. f4 {[%clk 0:02:23.8]} 26... gxf4
{[%clk 0:01:50.8]} 27. gxf4 {[%clk 0:02:24.7]} 27... exf4 {[%clk 0:01:50.5]} 28.
Re4 {[%clk 0:02:24.5]} 28... Kd5 {[%clk 0:01:48.2]} 29. Rxf4 {[%clk 0:02:24.3]}
29... Rg8 {[%clk 0:01:44.3]} 30. Kd3 {[%clk 0:02:21.6]} 30... Rg4 {[%clk
0:01:39.8]} 31. Rf5+ {[%clk 0:02:21.5]} 31... Ke6 {[%clk 0:01:38.4]} 32. Rxh5
{[%clk 0:02:22.1]} 32... Kd6 {[%clk 0:01:15.9]} 33. Ra5 {[%clk 0:02:16.5]} 33...
Rh4 {[%clk 0:01:14.9]} 34. Rxa7 {[%clk 0:02:16.2]} 34... Kd5 {[%clk 0:01:12.9]}
35. Ra5+ {[%clk 0:02:13.1]} 35... Kd6 {[%clk 0:01:12.9]} 36. Kc4 {[%clk
0:02:12.6]} 36... Ke6 {[%clk 0:01:06.7]} 37. a4 {[%clk 0:02:08]} 37... Rh3
{[%clk 0:01:03.9]} 38. Rb5 {[%clk 0:02:07.7]} 38... d3 {[%clk 0:01:02.7]} 39.
Kc3 {[%clk 0:02:08]} 39... Kd6 {[%clk 0:01:01.6]} 40. Kd2 {[%clk 0:02:02.1]}
40... Kc6 {[%clk 0:00:59.7]} 41. Rg5 {[%clk 0:02:01.8]} 41... Rxh2+ {[%clk
0:00:55.6]} 42. Kxd3 {[%clk 0:02:01.2]} 42... Rh3+ {[%clk 0:00:55.2]} 43. Kc4
{[%clk 0:01:59.7]} 43... Rh4+ {[%clk 0:00:55]} 44. Kc3 {[%clk 0:02:00.1]} 44...
Kb6 {[%clk 0:00:53.7]} 45. Rb5+ {[%clk 0:01:59.5]} 45... Kc6 {[%clk 0:00:53]}
46. Kb2 {[%clk 0:01:58.7]} 46... Rg4 {[%clk 0:00:51.2]} 47. Ka3 {[%clk
0:01:58.2]} 47... Rh4 {[%clk 0:00:51.3]} 48. Rg5 {[%clk 0:01:57.6]} 48... Kb6
{[%clk 0:00:50.5]} 49. Rg6+ {[%clk 0:01:57.3]} 49... Kb7 {[%clk 0:00:49.1]} 50.
a5 {[%clk 0:01:55.1]} 50... Ka7 {[%clk 0:00:48.9]} 51. b4 {[%clk 0:01:55.1]}
51... Rf4 {[%clk 0:00:47.3]} 52. Rc6 {[%clk 0:01:52.7]} 52... Kb7 {[%clk
0:00:46.1]} 53. b5 {[%clk 0:01:51.8]} 53... Rf3+ {[%clk 0:00:45.1]} 54. Kb4
{[%clk 0:01:51.3]} 54... Rf4+ {[%clk 0:00:45.3]} 55. Rc4 {[%clk 0:01:51.4]}
55... Rf7 {[%clk 0:00:44.4]} 56. a6+ {[%clk 0:01:50.9]} 56... Ka7 {[%clk
0:00:43.1]} 57. Ka5 {[%clk 0:01:49.9]} 57... Rf5 {[%clk 0:00:40.4]} 58. Rc7+
{[%clk 0:01:49.1]} 58... Kb8 {[%clk 0:00:39.5]} 59. Rd7 {[%clk 0:01:49.3]} 59...
Ka8 {[%clk 0:00:38.6]} 60. Kb6 {[%clk 0:01:46.9]} 60... Rf6+ {[%clk 0:00:38]}
61. Kc7 {[%clk 0:01:45.7]} 61... Rh6 {[%clk 0:00:32.7]} 62. b6 {[%clk
0:01:31.9]} 62... Rh7 {[%clk 0:00:31.7]} 63. b7+ {[%clk 0:01:29.5]} 1-0

[Event "Late-Titled-Tuesday-Blitz-March-19-2024"]
[Site "Chess.com"]
[Date "2024.03.19"]
[Round "4"]
[White "Keks2017"]
[Black "Lennis93"]
[Result "1-0"]
[WhiteElo "2578"]
[BlackElo "2727"]
[TimeControl "180+1"]
[EndTime "14:38:15 PDT"]
[Termination "Keks2017 won on time"]

1. e4 {[%clk 0:02:59.8]} 1... c5 {[%clk 0:02:57.6]} 2. d3 {[%clk 0:02:59.8]}
2... d6 {[%clk 0:02:58.2]} 3. g3 {[%clk 0:02:59.3]} 3... Nc6 {[%clk 0:02:58.5]}
4. Bg2 {[%clk 0:02:59.5]} 4... g6 {[%clk 0:02:59.2]} 5. f4 {[%clk 0:02:59.5]}
5... Bg7 {[%clk 0:02:59.9]} 6. Nf3 {[%clk 0:02:59.7]} 6... e6 {[%clk 0:02:57.7]}
7. O-O {[%clk 0:02:59.5]} 7... Nge7 {[%clk 0:02:58]} 8. c3 {[%clk 0:02:59.4]}
8... O-O {[%clk 0:02:52.6]} 9. Be3 {[%clk 0:02:59.1]} 9... b5 {[%clk 0:02:51.2]}
10. d4 {[%clk 0:02:58.6]} 10... d5 {[%clk 0:02:49.1]} 11. e5 {[%clk 0:02:56.2]}
11... cxd4 {[%clk 0:02:20.3]} 12. cxd4 {[%clk 0:02:55.3]} 12... b4 {[%clk
0:02:20.1]} 13. Nbd2 {[%clk 0:02:54.3]} 13... a5 {[%clk 0:02:19.7]} 14. Nb3
{[%clk 0:02:52.4]} 14... a4 {[%clk 0:02:19.9]} 15. Nc5 {[%clk 0:02:52.3]} 15...
a3 {[%clk 0:02:20.1]} 16. b3 {[%clk 0:02:51.5]} 16... Na7 {[%clk 0:02:02.5]} 17.
Qd2 {[%clk 0:02:48.9]} 17... Nec6 {[%clk 0:02:01.9]} 18. Rac1 {[%clk 0:02:46.5]}
18... Qb6 {[%clk 0:01:56.5]} 19. g4 {[%clk 0:02:40.3]} 19... Nb5 {[%clk
0:01:56.4]} 20. Qf2 {[%clk 0:02:25.9]} 20... Nc3 {[%clk 0:01:55.8]} 21. Rc2
{[%clk 0:02:25]} 21... f6 {[%clk 0:01:51.6]} 22. Re1 {[%clk 0:02:17.8]} 22...
Ra7 {[%clk 0:01:45.9]} 23. Qh4 {[%clk 0:02:08.1]} 23... Re7 {[%clk 0:01:40.4]}
24. Qg3 {[%clk 0:01:48.6]} 24... Qb5 {[%clk 0:01:20.7]} 25. Bf1 {[%clk
0:01:46.8]} 25... Qb8 {[%clk 0:01:11.8]} 26. Bd3 {[%clk 0:01:43.5]} 26... fxe5
{[%clk 0:01:08.6]} 27. fxe5 {[%clk 0:01:41.1]} 27... Nd8 {[%clk 0:00:23.9]} 28.
h4 {[%clk 0:01:37.9]} 28... Nb7 {[%clk 0:00:23]} 29. Nxb7 {[%clk 0:01:35.9]}
29... Qxb7 {[%clk 0:00:22]} 30. h5 {[%clk 0:01:35.7]} 30... gxh5 {[%clk
0:00:03.3]} 31. gxh5 {[%clk 0:01:32.8]} 31... Kh8 {[%clk 0:00:03.7]} 32. Ng5
{[%clk 0:01:25.8]} 32... Rg8 {[%clk 0:00:04]} 33. Rg2 {[%clk 0:01:16.6]} 33...
Ne4 {[%clk 0:00:03.9]} 34. Nxe4 {[%clk 0:01:11.1]} 34... dxe4 {[%clk 0:00:04.3]}
35. Bc4 {[%clk 0:01:11.2]} 35... Ree8 {[%clk 0:00:03.7]} 36. Qh4 {[%clk
0:01:09.4]} 36... Qf7 {[%clk 0:00:01.5]} 37. Rf1 {[%clk 0:01:08.2]} 37... Qe7
{[%clk 0:00:01.2]} 38. Bg5 {[%clk 0:01:06.5]} 38... Qa7 {[%clk 0:00:01.3]} 39.
Be3 {[%clk 0:00:56.8]} 39... Qe7 {[%clk 0:00:01.2]} 40. Qh3 {[%clk 0:00:52.5]}
1-0

[Event "Late-Titled-Tuesday-Blitz-March-19-2024"]
[Site "Chess.com"]
[Date "2024.03.19"]
[Round "4"]
[White "atbenina64"]
[Black "Irishchessman16"]
[Result "1-0"]
[WhiteElo "2737"]
[BlackElo "2531"]
[TimeControl "180+1"]
[EndTime "14:38:15 PDT"]
[Termination "atbenina64 won on time"]

1. c4 {[%clk 0:03:00.9]} 1... c5 {[%clk 0:02:58.3]} 2. Nf3 {[%clk 0:03:00.6]}
2... g6 {[%clk 0:02:57.6]} 3. d4 {[%clk 0:03:00.6]} 3... cxd4 {[%clk 0:02:57.5]}
4. Nxd4 {[%clk 0:03:01.5]} 4... Bg7 {[%clk 0:02:57]} 5. e4 {[%clk 0:03:01.9]}
5... Nc6 {[%clk 0:02:56.9]} 6. Be3 {[%clk 0:03:02.4]} 6... Nf6 {[%clk
0:02:55.5]} 7. Nc3 {[%clk 0:03:02.6]} 7... d6 {[%clk 0:02:48.9]} 8. Be2 {[%clk
0:03:02.8]} 8... O-O {[%clk 0:02:47.5]} 9. O-O {[%clk 0:03:02.6]} 9... Nxd4
{[%clk 0:02:40.2]} 10. Bxd4 {[%clk 0:03:02.6]} 10... Be6 {[%clk 0:02:33.8]} 11.
Rc1 {[%clk 0:02:58.8]} 11... a5 {[%clk 0:02:32.1]} 12. b3 {[%clk 0:02:58.4]}
12... Nd7 {[%clk 0:02:29.6]} 13. Be3 {[%clk 0:02:58.5]} 13... Nc5 {[%clk
0:02:27.7]} 14. f3 {[%clk 0:02:58.2]} 14... f5 {[%clk 0:02:10.9]} 15. exf5
{[%clk 0:02:58.7]} 15... gxf5 {[%clk 0:02:10.1]} 16. Qd2 {[%clk 0:02:54.2]}
16... Rf7 {[%clk 0:01:51.6]} 17. Rfe1 {[%clk 0:02:51.4]} 17... Be5 {[%clk
0:01:43.7]} 18. f4 {[%clk 0:02:50.7]} 18... Bxc3 {[%clk 0:01:40.3]} 19. Qxc3
{[%clk 0:02:49.9]} 19... Ne4 {[%clk 0:01:39.6]} 20. Qd4 {[%clk 0:02:48.2]} 20...
Bd7 {[%clk 0:01:38.3]} 21. Bf3 {[%clk 0:02:30.1]} 21... Bc6 {[%clk 0:01:37.7]}
22. Rcd1 {[%clk 0:02:29.5]} 22... Rg7 {[%clk 0:01:27]} 23. c5 {[%clk 0:02:15.2]}
23... d5 {[%clk 0:01:07.2]} 24. Qe5 {[%clk 0:02:04.8]} 24... Qf8 {[%clk
0:00:51.8]} 25. Rxd5 {[%clk 0:01:51.6]} 25... Bxd5 {[%clk 0:00:50.1]} 26. Qxd5+
{[%clk 0:01:52.5]} 26... Qf7 {[%clk 0:00:48.3]} 27. Qxb7 {[%clk 0:01:52.2]}
27... Rd8 {[%clk 0:00:43.3]} 28. c6 {[%clk 0:01:52.5]} 28... e6 {[%clk
0:00:39.8]} 29. c7 {[%clk 0:01:33.5]} 29... Qxc7 {[%clk 0:00:37.6]} 30. Qxc7
{[%clk 0:01:34.4]} 30... Rxc7 {[%clk 0:00:36.3]} 31. Bb6 {[%clk 0:01:35.1]}
31... Rdc8 {[%clk 0:00:17.2]} 32. Bxc7 {[%clk 0:01:35]} 32... Rxc7 {[%clk
0:00:17.9]} 33. Bxe4 {[%clk 0:01:35.8]} 33... fxe4 {[%clk 0:00:18.2]} 34. Rxe4
{[%clk 0:01:36.2]} 34... Rc2 {[%clk 0:00:16.4]} 35. Rxe6 {[%clk 0:01:31.3]}
35... Rxa2 {[%clk 0:00:16.3]} 36. Re5 {[%clk 0:01:28.8]} 36... Kf7 {[%clk
0:00:15.4]} 37. Rb5 {[%clk 0:01:23.1]} 37... Ra3 {[%clk 0:00:10.8]} 38. Kf2
{[%clk 0:01:20.3]} 38... Ke6 {[%clk 0:00:09.4]} 39. Re5+ {[%clk 0:01:11.5]}
39... Kf6 {[%clk 0:00:07.7]} 40. Re3 {[%clk 0:01:12.4]} 40... Ra2+ {[%clk
0:00:05]} 41. Kf3 {[%clk 0:01:12.7]} 41... Ra1 {[%clk 0:00:04.5]} 42. g4 {[%clk
0:01:11.1]} 42... Rf1+ {[%clk 0:00:03.7]} 43. Ke4 {[%clk 0:01:11.6]} 43... Rh1
{[%clk 0:00:03.2]} 44. h3 {[%clk 0:01:11.5]} 44... h5 {[%clk 0:00:02.4]} 45. g5+
{[%clk 0:01:11.1]} 45... Kg6 {[%clk 0:00:02.4]} 46. Ke5 {[%clk 0:01:09.6]} 1-0

[Event "Late-Titled-Tuesday-Blitz-March-19-2024"]
[Site "Chess.com"]
[Date "2024.03.19"]
[Round "4"]
[White "TigrVShlyape"]
[Black "Zq1"]
[Result "1-0"]
[WhiteElo "2934"]
[BlackElo "2632"]
[TimeControl "180+1"]
[EndTime "14:38:18 PDT"]
[Termination "TigrVShlyape won on time"]

1. e4 {[%clk 0:03:00.9]} 1... c5 {[%clk 0:02:59.1]} 2. Nf3 {[%clk 0:02:59.9]}
2... d6 {[%clk 0:02:58.5]} 3. d4 {[%clk 0:02:58.4]} 3... cxd4 {[%clk 0:02:58.1]}
4. Nxd4 {[%clk 0:02:58.6]} 4... Nf6 {[%clk 0:02:58.1]} 5. Nc3 {[%clk 0:02:58.5]}
5... Nc6 {[%clk 0:02:58.2]} 6. Bg5 {[%clk 0:02:56.6]} 6... e6 {[%clk 0:02:57.7]}
7. Qd2 {[%clk 0:02:54.6]} 7... Be7 {[%clk 0:02:57.6]} 8. Nb3 {[%clk 0:02:20.9]}
8... O-O {[%clk 0:02:49.5]} 9. Be2 {[%clk 0:02:07.7]} 9... a6 {[%clk 0:02:43.4]}
10. a4 {[%clk 0:02:06.9]} 10... b6 {[%clk 0:02:38.3]} 11. O-O {[%clk 0:02:06.7]}
11... h6 {[%clk 0:02:34]} 12. Bf4 {[%clk 0:02:04.4]} 12... Bb7 {[%clk
0:02:31.3]} 13. Rfd1 {[%clk 0:02:01.8]} 13... Ne5 {[%clk 0:02:31.4]} 14. f3
{[%clk 0:01:50.5]} 14... Rc8 {[%clk 0:02:30.1]} 15. Kh1 {[%clk 0:01:49.3]} 15...
Qc7 {[%clk 0:02:24.7]} 16. Qe1 {[%clk 0:01:48]} 16... Ng6 {[%clk 0:02:21.5]} 17.
Bg3 {[%clk 0:01:45.5]} 17... Nh5 {[%clk 0:02:15.8]} 18. Bf2 {[%clk 0:01:44.9]}
18... Nhf4 {[%clk 0:02:10.4]} 19. Bf1 {[%clk 0:01:44.3]} 19... d5 {[%clk
0:02:09]} 20. exd5 {[%clk 0:01:28.6]} 20... Nxd5 {[%clk 0:02:08]} 21. Nxd5
{[%clk 0:01:28.5]} 21... Bxd5 {[%clk 0:01:49.8]} 22. Bxa6 {[%clk 0:01:23.5]}
22... Ra8 {[%clk 0:01:36.3]} 23. Bd3 {[%clk 0:01:21.9]} 23... Bf6 {[%clk
0:01:13.9]} 24. Nd4 {[%clk 0:01:15.4]} 24... Nf4 {[%clk 0:01:03.5]} 25. Be4
{[%clk 0:01:14.6]} 25... Rfd8 {[%clk 0:00:58.4]} 26. Nb5 {[%clk 0:01:13]} 26...
Qb7 {[%clk 0:00:45.8]} 27. Bxd5 {[%clk 0:01:11.2]} 27... Nxd5 {[%clk 0:00:20.3]}
28. Bd4 {[%clk 0:01:05]} 28... Bg5 {[%clk 0:00:11.1]} 29. Qe4 {[%clk 0:01:00.8]}
29... Qe7 {[%clk 0:00:06.7]} 30. c4 {[%clk 0:00:58.3]} 30... Nf6 {[%clk
0:00:04.5]} 31. Qe2 {[%clk 0:00:53.8]} 31... Qb4 {[%clk 0:00:03.5]} 32. Qc2
{[%clk 0:00:47.2]} 32... Nh5 {[%clk 0:00:02.5]} 33. Bxb6 {[%clk 0:00:38.6]}
33... Rxd1+ {[%clk 0:00:01.7]} 34. Rxd1 {[%clk 0:00:39]} 34... Nf4 {[%clk
0:00:01.9]} 35. b3 {[%clk 0:00:36.8]} 35... Ng6 {[%clk 0:00:01.4]} 36. Bc7
{[%clk 0:00:35.1]} 1-0